Workbook

Sheet Sheet1
A1: 福泉市2019年面向社会公开招聘事业单位工作人员体检人员名单
A2: 序号 | B2: 姓名 | C2: 报考单位及代码 | D2: 报考职位及代码 | E2: 笔试环节 成绩 | F2: 笔试成绩折合分 | G2: 面试成绩 | H2: 面试成绩折合分 | I2: 总成绩 | J2: 是否进入体检
A3: 1 | B3: 古飘 | C3: 201福泉市第一人民医院 | D3: 01临床医师 | E3: 162.00 | F3: =E3/3*0.5 -> 27.00 | G3: 83.00 | H3: =G3*0.5 -> 41.50 | I3: =F3+H3 -> 68.50 | J3: 是
A4: 2 | B4: 罗林林 | C4: 201福泉市第一人民医院 | D4: 01临床医师 | E4: 148.50 | F4: =E4/3*0.5 -> 24.75 | G4: 87.20 | H4: =G4*0.5 -> 43.60 | I4: =F4+H4 -> 68.35 | J4: 是
A5: 3 | B5: 唐陈 | C5: 202福泉市中医医院 | D5: 01放射科医师 | E5: 148.70 | F5: 24.78 | G5: 77.80 | H5: 38.90 | I5: 63.68 | J5: 是
A6: 4 | B6: 朱志宏 | C6: 203福泉市妇幼保健院 | D6: 01临床医师 | E6: 149.10 | F6: 24.85 | G6: 73.00 | H6: 36.50 | I6: 61.35 | J6: 是
A7: 5 | B7: 陈艳 | C7: 203福泉市妇幼保健院 | D7: 02临床医师 | E7: 156.10 | F7: =E7/3*0.5 -> 26.02 | G7: 79.80 | H7: =G7*0.5 -> 39.90 | I7: =F7+H7 -> 65.92 | J7: 是
A8: 6 | B8: 唐路路 | C8: 203福泉市妇幼保健院 | D8: 02临床医师 | E8: 165.60 | F8: 27.60 | G8: 74.60 | H8: 37.30 | I8: 64.90 | J8: 是
A9: 7 | B9: 张爱婷 | C9: 203福泉市妇幼保健院 | D9: 02临床医师 | E9: 142.50 | F9: =E9/3*0.5 -> 23.75 | G9: 77.80 | H9: =G9*0.5 -> 38.90 | I9: =F9+H9 -> 62.65 | J9: 是
A10: 8 | B10: 周行念 | C10: 203福泉市妇幼保健院 | D10: 04中医科医师 | E10: 129.40 | F10: 21.57 | G10: 83.20 | H10: 41.60 | I10: 63.17 | J10: 是
A11: 9 | B11: 郑时艳 | C11: 203福泉市妇幼保健院 | D11: 05药剂科医师 | E11: 179.00 | F11: 29.83 | G11: 71.20 | H11: 35.60 | I11: 65.43 | J11: 是
A12: 10 | B12: 罗竣瀚 | C12: 204福泉市马场坪社区卫生服务中心 | D12: 01医师 | E12: 150.40 | F12: 25.07 | G12: 76.60 | H12: 38.30 | I12: 63.37 | J12: 是
A13: 11 | B13: 陈青堂 | C13: 204福泉市马场坪社区卫生服务中心 | D13: 02医师 | E13: 164.90 | F13: 27.48 | G13: 80.40 | H13: 40.20 | I13: 67.68 | J13: 是
A14: 12 | B14: 罗菊 | C14: 205福泉市金山社区卫生服务中心 | D14: 01医师 | E14: 129.80 | F14: 21.63 | G14: 81.60 | H14: 40.80 | I14: 62.43 | J14: 是
A15: 13 | B15: 潘玉票 | C15: 206福泉市陆坪中心卫生院 | D15: 01医师 | E15: 161.50 | F15: 26.92 | G15: 81.80 | H15: 40.90 | I15: 67.82 | J15: 是
A16: 14 | B16: 杨慧 | C16: 207福泉市黄丝卫生院 | D16: 01医师 | E16: 113.00 | F16: =E16/3*0.5 -> 18.83 | G16: 79.20 | H16: =G16*0.5 -> 39.60 | I16: =F16+H16 -> 58.43 | J16: 是
A17: 15 | B17: 宋赣浈 | C17: 208福泉市道坪中心卫生院 | D17: 01医师 | E17: 122.30 | F17: 20.38 | G17: 82.20 | H17: 41.10 | I17: 61.48 | J17: 是
A18: 16 | B18: 唐涛 | C18: 210福泉市乡镇卫生院 | D18: 01医师 | E18: 123.30 | F18: =E18/3*0.5 -> 20.55 | G18: 86.20 | H18: =G18*0.5 -> 43.10 | I18: =F18+H18 -> 63.65 | J18: 是
A19: 17 | B19: 管炳垚 | C19: 210福泉市乡镇卫生院 | D19: 01医师 | E19: 122.30 | F19: =E19/3*0.5 -> 20.38 | G19: 86.20 | H19: =G19*0.5 -> 43.10 | I19: =F19+H19 -> 63.48 | J19: 是
A20: 18 | B20: 梁健 | C20: 210福泉市乡镇卫生院 | D20: 01医师 | E20: 138.00 | F20: =E20/3*0.5 -> 23.00 | G20: 79.20 | H20: =G20*0.5 -> 39.60 | I20: =F20+H20 -> 62.60 | J20: 是
A21: 19 | B21: 周凯 | C21: 210福泉市乡镇卫生院 | D21: 01医师 | E21: 142.00 | F21: 23.67 | G21: 77.40 | H21: 38.70 | I21: 62.37 | J21: 是
A22: 20 | B22: 陈琴 | C22: 210福泉市乡镇卫生院 | D22: 02医师 | E22: 148.90 | F22: =E22/3*0.5 -> 24.82 | G22: 86.20 | H22: =G22*0.5 -> 43.10 | I22: =F22+H22 -> 67.92 | J22: 是
A23: 21 | B23: 邓朝香 | C23: 210福泉市乡镇卫生院 | D23: 02医师 | E23: 146.70 | F23: =E23/3*0.5 -> 24.45 | G23: 86.40 | H23: =G23*0.5 -> 43.20 | I23: =F23+H23 -> 67.65 | J23: 是
A24: 22 | B24: 解倩倩 | C24: 211福泉市第二中学 | D24: 01体育教师 | E24: 186.00 | F24: 31.00 | G24: 87.61 | H24: 43.81 | I24: 74.81 | J24: 是
A25: 23 | B25: 兰罗维 | C25: 211福泉市第二中学 | D25: 01体育教师 | E25: 183.50 | F25: 30.58 | G25: 86.63 | H25: 43.32 | I25: 73.90 | J25: 是
A26: 24 | B26: 肖艺丰 | C26: 212福泉市第四中学 | D26: 01语文教师 | E26: 191.50 | F26: =E26/3*0.5 -> 31.92 | G26: 88.75 | H26: =G26*0.5 -> 44.38 | I26: =F26+H26 -> 76.29 | J26: 是
A27: 25 | B27: 邓乾芬 | C27: 212福泉市第四中学 | D27: 02数学教师 | E27: 184.00 | F27: 30.67 | G27: 91.50 | H27: 45.75 | I27: 76.42 | J27: 是
A28: 26 | B28: 刘璐 | C28: 212福泉市第四中学 | D28: 03物理教师 | E28: 204.00 | F28: =E28/3*0.5 -> 34.00 | G28: 89.17 | H28: =G28*0.5 -> 44.59 | I28: =F28+H28 -> 78.59 | J28: 是
A29: 27 | B29: 黄悦 | C29: 212福泉市第四中学 | D29: 04政治教师 | E29: 168.00 | F29: 28.00 | G29: 87.94 | H29: 43.97 | I29: 71.97 | J29: 是
A30: 28 | B30: 陈蒙蒙 | C30: 213福泉市龙昌初级中学 | D30: 01英语教师 | E30: 168.50 | F30: =E30/3*0.5 -> 28.08 | G30: 94.01 | H30: =G30*0.5 -> 47.01 | I30: =F30+H30 -> 75.09 | J30: 是
A31: 29 | B31: 郑杰 | C31: 213福泉市龙昌初级中学 | D31: 02音乐教师 | E31: 150.00 | F31: 25.00 | G31: 93.03 | H31: 46.52 | I31: 71.52 | J31: 是
A32: 30 | B32: 杨秀琴 | C32: 213福泉市龙昌初级中学 | D32: 03数学教师 | E32: 168.50 | F32: 28.08 | G32: 90.32 | H32: 45.16 | I32: 73.24 | J32: 是
A33: 31 | B33: 韩子木 | C33: 214福泉市第二小学 | D33: 01音乐教师 | E33: 160.00 | F33: 26.67 | G33: 91.86 | H33: 45.93 | I33: 72.60 | J33: 是
A34: 32 | B34: 张莎丽 | C34: 214福泉市第二小学 | D34: 02美术教师 | E34: 172.00 | F34: =E34/3*0.5 -> 28.67 | G34: 92.74 | H34: =G34*0.5 -> 46.37 | I34: =F34+H34 -> 75.04 | J34: 是
A35: 33 | B35: 汪培 | C35: 215福泉市第四小学 | D35: 01语文教师 | E35: 180.50 | F35: =E35/3*0.5 -> 30.08 | G35: 91.03 | H35: =G35*0.5 -> 45.52 | I35: =F35+H35 -> 75.60 | J35: 是
A36: 34 | B36: 孙倩 | C36: 215福泉市第四小学 | D36: 02英语教师 | E36: 208.00 | F36: 34.67 | G36: 91.17 | H36: 45.59 | I36: 80.25 | J36: 是
A37: 35 | B37: 范晓娟 | C37: 215福泉市第四小学 | D37: 03数学教师 | E37: 172.00 | F37: 28.67 | G37: 91.70 | H37: 45.85 | I37: 74.52 | J37: 是
A38: 36 | B38: 吴文菁 | C38: 216福泉市第五小学 | D38: 01英语教师 | E38: 169.50 | F38: 28.25 | G38: 91.46 | H38: 45.73 | I38: 73.98 | J38: 是
A39: 37 | B39: 周劲芬 | C39: 217福泉市第六小学 | D39: 01美术教师 | E39: 180.00 | F39: 30.00 | G39: 92.63 | H39: 46.32 | I39: 76.32 | J39: 是
A40: 38 | B40: 吴海珍 | C40: 217福泉市第六小学 | D40: 02音乐教师 | E40: 149.00 | F40: =E40/3*0.5 -> 24.83 | G40: 90.95 | H40: =G40*0.5 -> 45.48 | I40: =F40+H40 -> 70.31 | J40: 是
A41: 39 | B41: 熊珠宏 | C41: 217福泉市第六小学 | D41: 03语文教师 | E41: 189.00 | F41: 31.50 | G41: 86.57 | H41: 43.29 | I41: 74.79 | J41: 是
A42: 40 | B42: 潘吉超 | C42: 217福泉市第六小学 | D42: 04体育教师 | E42: 176.50 | F42: 29.42 | G42: 82.64 | H42: 41.32 | I42: 70.74 | J42: 是
A43: 41 | B43: 莫含英 | C43: 217福泉市第六小学 | D43: 05数学教师 | E43: 181.00 | F43: 30.17 | G43: 90.91 | H43: 45.46 | I43: 75.62 | J43: 是
A44: 42 | B44: 宋艾优 | C44: 218福泉市乡镇小学 | D44: 01语文教师 | E44: 202.00 | F44: 33.67 | G44: 92.08 | H44: 46.04 | I44: 79.71 | J44: 是
A45: 43 | B45: 谭文佳 | C45: 218福泉市乡镇小学 | D45: 01语文教师 | E45: 198.00 | F45: 33.00 | G45: 90.04 | H45: 45.02 | I45: 78.02 | J45: 是
A46: 44 | B46: 王攀惠 | C46: 218福泉市乡镇小学 | D46: 01语文教师 | E46: 197.00 | F46: 32.83 | G46: 87.80 | H46: 43.90 | I46: 76.73 | J46: 是
A47: 45 | B47: 彭潇 | C47: 218福泉市乡镇小学 | D47: 01语文教师 | E47: 186.50 | F47: 31.08 | G47: 88.14 | H47: 44.07 | I47: 75.15 | J47: 是
A48: 46 | B48: 付纪红 | C48: 218福泉市乡镇小学 | D48: 02数学教师 | E48: 175.00 | F48: 29.17 | G48: 90.39 | H48: 45.20 | I48: 74.36 | J48: 是
A49: 47 | B49: 宋江瑶 | C49: 218福泉市乡镇小学 | D49: 02数学教师 | E49: 166.00 | F49: 27.67 | G49: 91.59 | H49: 45.80 | I49: 73.46 | J49: 是
A50: 48 | B50: 宋文豪 | C50: 218福泉市乡镇小学 | D50: 03体育教师 | E50: 170.50 | F50: 28.42 | G50: 83.48 | H50: 41.74 | I50: 70.16 | J50: 是
A51: 49 | B51: 罗林凤 | C51: 218福泉市乡镇小学 | D51: 03体育教师 | E51: 165.50 | F51: =E51/3*0.5 -> 27.58 | G51: 82.52 | H51: =G51*0.5 -> 41.26 | I51: =F51+H51 -> 68.84 | J51: 是
A52: 50 | B52: 李方佳 | C52: 218福泉市乡镇小学 | D52: 03体育教师 | E52: 155.50 | F52: =E52/3*0.5 -> 25.92 | G52: 85.01 | H52: =G52*0.5 -> 42.51 | I52: =F52+H52 -> 68.42 | J52: 是
A53: 51 | B53: 杨东霞 | C53: 218福泉市乡镇小学 | D53: 03体育教师 | E53: 166.50 | F53: 27.75 | G53: 81.14 | H53: 40.57 | I53: 68.32 | J53: 是
A54: 52 | B54: 冉露露 | C54: 218福泉市乡镇小学 | D54: 04美术教师 | E54: 180.00 | F54: =E54/3*0.5 -> 30.00 | G54: 93.17 | H54: =G54*0.5 -> 46.59 | I54: =F54+H54 -> 76.59 | J54: 是
A55: 53 | B55: 曹文秘 | C55: 218福泉市乡镇小学 | D55: 04美术教师 | E55: 174.00 | F55: =E55/3*0.5 -> 29.00 | G55: 94.72 | H55: =G55*0.5 -> 47.36 | I55: =F55+H55 -> 76.36 | J55: 是
A56: 54 | B56: 张艳梅 | C56: 218福泉市乡镇小学 | D56: 04美术教师 | E56: 183.00 | F56: =E56/3*0.5 -> 30.50 | G56: 91.20 | H56: =G56*0.5 -> 45.60 | I56: =F56+H56 -> 76.10 | J56: 是
A57: 55 | B57: 杨杨 | C57: 218福泉市乡镇小学 | D57: 05英语教师 | E57: 196.50 | F57: =E57/3*0.5 -> 32.75 | G57: 93.63 | H57: =G57*0.5 -> 46.82 | I57: =F57+H57 -> 79.57 | J57: 是
A58: 56 | B58: 李婧雯 | C58: 218福泉市乡镇小学 | D58: 05英语教师 | E58: 197.00 | F58: 32.83 | G58: 93.26 | H58: 46.63 | I58: 79.46 | J58: 是
A59: 57 | B59: 李泳洁 | C59: 218福泉市乡镇小学 | D59: 05英语教师 | E59: 187.50 | F59: 31.25 | G59: 92.45 | H59: 46.23 | I59: 77.48 | J59: 是
A60: 58 | B60: 唐力 | C60: 218福泉市乡镇小学 | D60: 06音乐教师 | E60: 188.50 | F60: 31.42 | G60: 93.74 | H60: 46.87 | I60: 78.29 | J60: 是
A61: 59 | B61: 夏萍苹 | C61: 218福泉市乡镇小学 | D61: 06音乐教师 | E61: 155.50 | F61: =E61/3*0.5 -> 25.92 | G61: 93.82 | H61: =G61*0.5 -> 46.91 | I61: =F61+H61 -> 72.83 | J61: 是
A62: 60 | B62: 杨双双 | C62: 218福泉市乡镇小学 | D62: 06音乐教师 | E62: 164.50 | F62: 27.42 | G62: 88.43 | H62: 44.22 | I62: 71.63 | J62: 是
A63: 61 | B63: 冉敏君 | C63: 218福泉市乡镇小学 | D63: 06音乐教师 | E63: 149.50 | F63: 24.92 | G63: 91.22 | H63: 45.61 | I63: 70.53 | J63: 是
A64: 62 | B64: 吴传兴 | C64: 218福泉市乡镇小学 | D64: 06音乐教师 | E64: 144.00 | F64: 24.00 | G64: 92.59 | H64: 46.30 | I64: 70.30 | J64: 是
A65: 63 | B65: 王彩 | C65: 218福泉市乡镇小学 | D65: 06音乐教师 | E65: 139.00 | F65: =E65/3*0.5 -> 23.17 | G65: 93.77 | H65: =G65*0.5 -> 46.89 | I65: =F65+H65 -> 70.05 | J65: 是
A66: 64 | B66: 蒲启梅 | C66: 218福泉市乡镇小学 | D66: 06音乐教师 | E66: 139.50 | F66: =E66/3*0.5 -> 23.25 | G66: 93.44 | H66: =G66*0.5 -> 46.72 | I66: =F66+H66 -> 69.97 | J66: 是
A67: 65 | B67: 吴秋艳 | C67: 219福泉市第三幼儿园 | D67: 01校医 | E67: 138.60 | F67: 23.10 | G67: 84.40 | H67: 42.20 | I67: 65.30 | J67: 是
A68: 66 | B68: 李富梅 | C68: 220福泉市牛场第二幼儿园 | D68: 01校医 | E68: 125.30 | F68: 20.88 | G68: 79.40 | H68: 39.70 | I68: 60.58 | J68: 是

Sheet Sheet2
